[Event "*** Titled Tuesday Blitz"]
[Site "Chess.com"]
[Date "2021.03.09"]
[Round "7"]
[White "MITerryble"]
[Black "Philosopherrr"]
[Result "1-0"]
[WhiteElo "2944"]
[BlackElo "2534"]
[TimeControl "180+1"]
[EndTime "11:23:35 PST"]
[Termination "MITerryble won by resignation"]

1. e4 {[%clk 0:03:00.9]} 1... e5 {[%clk 0:02:59.7]} 2. Nf3 {[%clk 0:03:01.2]}
2... Nc6 {[%clk 0:02:57.9]} 3. c3 {[%clk 0:03:01.5]} 3... Nf6 {[%clk 0:02:50.3]}
4. d4 {[%clk 0:03:01.4]} 4... d6 {[%clk 0:02:47]} 5. Bb5 {[%clk 0:03:00.5]} 5...
Bd7 {[%clk 0:02:46.3]} 6. O-O {[%clk 0:03:00.4]} 6... Be7 {[%clk 0:02:44.6]} 7.
d5 {[%clk 0:02:55.7]} 7... Nb8 {[%clk 0:02:44]} 8. Bd3 {[%clk 0:02:55.9]} 8...
O-O {[%clk 0:02:42.1]} 9. h3 {[%clk 0:02:55.8]} 9... c6 {[%clk 0:02:40.4]} 10.
c4 {[%clk 0:02:55]} 10... Na6 {[%clk 0:02:40.7]} 11. Nc3 {[%clk 0:02:54.8]}
11... Nc5 {[%clk 0:02:40.4]} 12. Bc2 {[%clk 0:02:55.1]} 12... a5 {[%clk
0:02:39.9]} 13. b3 {[%clk 0:02:55.2]} 13... cxd5 {[%clk 0:02:40.1]} 14. exd5
{[%clk 0:02:56]} 14... Rc8 {[%clk 0:02:35.5]} 15. Be3 {[%clk 0:02:55.8]} 15...
Ne8 {[%clk 0:02:34.6]} 16. g4 {[%clk 0:02:16.3]} 16... g6 {[%clk 0:02:31.7]} 17.
Kh2 {[%clk 0:02:03.1]} 17... Ng7 {[%clk 0:02:30.7]} 18. Rg1 {[%clk 0:01:54.5]}
18... Kh8 {[%clk 0:02:30.1]} 19. Qd2 {[%clk 0:01:46.2]} 19... f5 {[%clk
0:02:28.7]} 20. g5 {[%clk 0:01:39.6]} 20... f4 {[%clk 0:02:24]} 21. Bxc5 {[%clk
0:01:39.3]} 21... Rxc5 {[%clk 0:02:24.3]} 22. Ne4 {[%clk 0:01:39.8]} 22... Rc8
{[%clk 0:02:23.9]} 23. c5 {[%clk 0:01:14.8]} 23... Bf5 {[%clk 0:02:15]} 24. cxd6
{[%clk 0:01:14.1]} 24... Bxd6 {[%clk 0:02:10.2]} 25. Rac1 {[%clk 0:01:14.3]}
25... Ba3 {[%clk 0:01:59.3]} 26. Rcd1 {[%clk 0:01:10.6]} 26... Qd7 {[%clk
0:01:46.1]} 27. Nxe5 {[%clk 0:00:48.3]} 27... Qe8 {[%clk 0:01:43.7]} 28. Nc4
{[%clk 0:00:48]} 28... Bb4 {[%clk 0:01:38.9]} 29. Qd4 {[%clk 0:00:47.8]} 29...
Bxe4 {[%clk 0:01:00]} 30. Qxe4 {[%clk 0:00:27]} 30... Qd8 {[%clk 0:00:48.5]} 31.
a4 {[%clk 0:00:20.5]} 31... f3 {[%clk 0:00:44.7]} 32. Rd3 {[%clk 0:00:16.6]}
32... Bd6+ {[%clk 0:00:41.3]} 33. Kh1 {[%clk 0:00:16.1]} 33... Rf4 {[%clk
0:00:35.4]} 34. Qe1 {[%clk 0:00:04.6]} 34... Qd7 {[%clk 0:00:31.3]} 35. Qf1
{[%clk 0:00:04.8]} 35... Rcxc4 {[%clk 0:00:29.4]} 36. bxc4 {[%clk 0:00:04.3]}
36... Rxc4 {[%clk 0:00:27.7]} 37. Bd1 {[%clk 0:00:04.2]} 37... Nf5 {[%clk
0:00:25]} 38. Rxf3 {[%clk 0:00:04.3]} 38... Rc1 {[%clk 0:00:23.6]} 39. Rd3
{[%clk 0:00:03.9]} 39... Bc7 {[%clk 0:00:17.4]} 40. Qe2 {[%clk 0:00:04.1]} 40...
Qd6 {[%clk 0:00:14.5]} 41. Rg2 {[%clk 0:00:03.8]} 41... Kg7 {[%clk 0:00:13.1]}
42. Qb2+ {[%clk 0:00:03.7]} 42... Qe5 {[%clk 0:00:10.9]} 43. Qxc1 {[%clk
0:00:02.8]} 43... Qe1+ {[%clk 0:00:10.8]} 44. Rg1 {[%clk 0:00:03]} 44... Qxf2
{[%clk 0:00:11]} 45. Qc3+ {[%clk 0:00:02.4]} 45... Kg8 {[%clk 0:00:09.8]} 46.
Qd2 {[%clk 0:00:03.3]} 46... Qc5 {[%clk 0:00:05.1]} 47. d6 {[%clk 0:00:02.6]}
47... Bxd6 {[%clk 0:00:05.5]} 48. Bb3+ {[%clk 0:00:02.6]} 48... Kf8 {[%clk
0:00:05.2]} 49. Rxd6 {[%clk 0:00:03.5]} 49... Nxd6 {[%clk 0:00:04.7]} 50. Rf1+
{[%clk 0:00:03.7]} 50... Nf5 {[%clk 0:00:05.2]} 51. Bd5 {[%clk 0:00:04]} 51...
Kg7 {[%clk 0:00:04.7]} 52. Rf3 {[%clk 0:00:04]} 52... Qd6 {[%clk 0:00:04.6]} 53.
Qc3+ {[%clk 0:00:03.9]} 53... Kf8 {[%clk 0:00:05]} 54. Qd3 {[%clk 0:00:04.8]}
54... Qe5 {[%clk 0:00:05.1]} 55. Rf1 {[%clk 0:00:03.9]} 55... Kg7 {[%clk
0:00:05.5]} 56. Kg1 {[%clk 0:00:04.3]} 56... h5 {[%clk 0:00:05.4]} 57. Rf2
{[%clk 0:00:04.5]} 57... Nd4 {[%clk 0:00:05.4]} 58. Qd2 {[%clk 0:00:04.4]} 58...
Nf5 {[%clk 0:00:04.1]} 59. Qb2 {[%clk 0:00:03.5]} 59... Nd4 {[%clk 0:00:04]} 60.
Bg2 {[%clk 0:00:03.8]} 60... b6 {[%clk 0:00:03.7]} 61. Bf1 {[%clk 0:00:03.3]}
61... Nf3+ {[%clk 0:00:03.3]} 62. Kg2 {[%clk 0:00:02.5]} 62... Nd4 {[%clk
0:00:03.4]} 63. Kh1 {[%clk 0:00:02]} 63... Qe4+ {[%clk 0:00:03.4]} 64. Bg2
{[%clk 0:00:02.9]} 64... Qe1+ {[%clk 0:00:03.6]} 65. Kh2 {[%clk 0:00:01.9]}
65... Qe5+ {[%clk 0:00:03.7]} 66. Kg1 {[%clk 0:00:02.8]} 66... Qe1+ {[%clk
0:00:03.7]} 67. Bf1 {[%clk 0:00:03.7]} 67... Qe3 {[%clk 0:00:03.4]} 68. Qd2
{[%clk 0:00:03.6]} 68... Qg3+ {[%clk 0:00:03.9]} 69. Kh1 {[%clk 0:00:02.9]}
69... Qe5 {[%clk 0:00:03.3]} 70. Qd3 {[%clk 0:00:02.5]} 70... Nc6 {[%clk
0:00:04.2]} 71. Qd7+ {[%clk 0:00:02.6]} 71... Ne7 {[%clk 0:00:04.4]} 72. Qd2
{[%clk 0:00:03.5]} 72... Qxg5 {[%clk 0:00:04.5]} 73. Qxg5 {[%clk 0:00:03.1]}
73... Nf5 {[%clk 0:00:05.1]} 74. Qg2 {[%clk 0:00:04]} 74... Nh4 {[%clk
0:00:05.3]} 75. Qh2 {[%clk 0:00:04.9]} 75... Kh6 {[%clk 0:00:05.9]} 76. Kg1
{[%clk 0:00:05.5]} 76... Nf3+ {[%clk 0:00:06.8]} 77. Rxf3 {[%clk 0:00:05]} 77...
g5 {[%clk 0:00:07.7]} 1-0

[Event "*** Titled Tuesday Blitz"]
[Site "Chess.com"]
[Date "2021.03.09"]
[Round "7"]
[White "seorobert1971"]
[Black "Sam_ChessMood"]
[Result "1/2-1/2"]
[WhiteElo "2742"]
[BlackElo "2882"]
[TimeControl "180+1"]
[EndTime "11:23:45 PST"]
[Termination "Game drawn by repetition"]

1. e4 {[%clk 0:03:00.9]} 1... e5 {[%clk 0:02:59.9]} 2. Nc3 {[%clk 0:03:01.8]}
2... Nf6 {[%clk 0:02:59.5]} 3. Nf3 {[%clk 0:03:00.9]} 3... Nc6 {[%clk
0:02:59.1]} 4. g3 {[%clk 0:03:00.6]} 4... d5 {[%clk 0:02:47.3]} 5. exd5 {[%clk
0:03:00.3]} 5... Nxd5 {[%clk 0:02:47.9]} 6. Bg2 {[%clk 0:03:00.7]} 6... Nxc3
{[%clk 0:02:48.3]} 7. bxc3 {[%clk 0:03:00.7]} 7... Bd6 {[%clk 0:02:42.6]} 8. O-O
{[%clk 0:03:00.2]} 8... O-O {[%clk 0:02:42.8]} 9. d3 {[%clk 0:02:59.9]} 9... Bg4
{[%clk 0:02:37.8]} 10. Rb1 {[%clk 0:02:56.1]} 10... Rb8 {[%clk 0:02:37.7]} 11.
Qe1 {[%clk 0:02:55.6]} 11... Bh5 {[%clk 0:02:25.1]} 12. Nd2 {[%clk 0:02:50.1]}
12... f5 {[%clk 0:02:21.5]} 13. Nc4 {[%clk 0:02:46.4]} 13... f4 {[%clk
0:01:58.4]} 14. Qe4 {[%clk 0:02:40]} 14... Kh8 {[%clk 0:01:56]} 15. Nxd6 {[%clk
0:02:31.1]} 15... Qxd6 {[%clk 0:01:46.2]} 16. Qa4 {[%clk 0:02:26.2]} 16... Qf6
{[%clk 0:01:29.6]} 17. Qe4 {[%clk 0:02:19.2]} 17... Bg6 {[%clk 0:01:22]} 18. Qc4
{[%clk 0:02:15.1]} 18... f3 {[%clk 0:01:13.5]} 19. Bh1 {[%clk 0:02:08.2]} 19...
e4 {[%clk 0:01:08.6]} 20. dxe4 {[%clk 0:02:06.4]} 20... Ne5 {[%clk 0:01:07.1]}
21. Qxc7 {[%clk 0:02:00.9]} 21... Rfc8 {[%clk 0:00:56.7]} 22. Qa5 {[%clk
0:01:59.7]} 22... b6 {[%clk 0:00:31.2]} 23. Qxa7 {[%clk 0:01:55.7]} 23... Bxe4
{[%clk 0:00:23.3]} 24. Bf4 {[%clk 0:01:50.5]} 24... Ra8 {[%clk 0:00:09.9]} 25.
Qxb6 {[%clk 0:01:44]} 25... Qxb6 {[%clk 0:00:10]} 26. Rxb6 {[%clk 0:01:43.9]}
26... Nc4 {[%clk 0:00:10.6]} 27. Re6 {[%clk 0:01:36.4]} 27... Bd5 {[%clk
0:00:10]} 28. Re7 {[%clk 0:01:35.1]} 28... Rxa2 {[%clk 0:00:09.3]} 29. Be5
{[%clk 0:01:33.6]} 29... Nxe5 {[%clk 0:00:09.3]} 30. Rxe5 {[%clk 0:01:33.3]}
30... Ba8 {[%clk 0:00:09.4]} 31. Rf5 {[%clk 0:01:29.9]} 31... Rxc2 {[%clk
0:00:08.6]} 32. Bxf3 {[%clk 0:01:28.3]} 32... Bxf3 {[%clk 0:00:08.7]} 33. Rxf3
{[%clk 0:01:28.7]} 33... R2xc3 {[%clk 0:00:09.2]} 34. Rxc3 {[%clk 0:01:28.8]}
34... Rxc3 {[%clk 0:00:10.1]} 35. h4 {[%clk 0:01:29.1]} 35... h5 {[%clk
0:00:09.2]} 36. Rd1 {[%clk 0:01:28.9]} 36... Kh7 {[%clk 0:00:06.5]} 37. Rd6
{[%clk 0:01:28.1]} 37... g6 {[%clk 0:00:06.6]} 38. Kg2 {[%clk 0:01:28.5]} 38...
Rb3 {[%clk 0:00:06.4]} 39. Re6 {[%clk 0:01:28.5]} 39... Kg7 {[%clk 0:00:06.7]}
40. Re3 {[%clk 0:01:28.5]} 40... Rb2 {[%clk 0:00:06.4]} 41. Kf3 {[%clk
0:01:28.4]} 41... Kf6 {[%clk 0:00:07]} 42. Re2 {[%clk 0:01:28.3]} 42... Rb3+
{[%clk 0:00:07.2]} 43. Kg2 {[%clk 0:01:28.5]} 43... Ra3 {[%clk 0:00:07.3]} 44.
Rb2 {[%clk 0:01:28.4]} 44... Rc3 {[%clk 0:00:07.3]} 45. Rb6+ {[%clk 0:01:28.2]}
45... Kf5 {[%clk 0:00:07.8]} 46. Rb5+ {[%clk 0:01:28.2]} 46... Kf6 {[%clk
0:00:07.8]} 47. Rg5 {[%clk 0:01:27.7]} 47... Rb3 {[%clk 0:00:07.8]} 48. Rc5
{[%clk 0:01:26.8]} 48... Ra3 {[%clk 0:00:07.9]} 49. Rc2 {[%clk 0:01:25.8]} 49...
Rb3 {[%clk 0:00:07.9]} 50. f3 {[%clk 0:01:25.4]} 50... Ra3 {[%clk 0:00:08.1]}
51. Re2 {[%clk 0:01:21]} 51... Rb3 {[%clk 0:00:08.5]} 52. Ra2 {[%clk 0:01:18.9]}
52... Rc3 {[%clk 0:00:08.7]} 53. Ra6+ {[%clk 0:01:17.7]} 53... Kf5 {[%clk
0:00:09.1]} 54. Ra5+ {[%clk 0:01:17.6]} 54... Kf6 {[%clk 0:00:09.5]} 55. Ra2
{[%clk 0:01:17.1]} 55... Rb3 {[%clk 0:00:09.4]} 56. g4 {[%clk 0:01:17.3]} 56...
hxg4 {[%clk 0:00:09.4]} 57. fxg4 {[%clk 0:01:17.5]} 57... Rb4 {[%clk 0:00:09.9]}
58. Ra6+ {[%clk 0:01:17.1]} 58... Kf7 {[%clk 0:00:09.8]} 59. Kf3 {[%clk
0:01:17.3]} 59... Rc4 {[%clk 0:00:10.1]} 60. Rd6 {[%clk 0:01:15.9]} 60... Rb4
{[%clk 0:00:10.2]} 61. Kg3 {[%clk 0:01:15.8]} 61... Rc4 {[%clk 0:00:10.1]} 62.
Rd3 {[%clk 0:01:15.6]} 62... Rb4 {[%clk 0:00:10.3]} 63. Rf3+ {[%clk 0:01:16.5]}
63... Kg7 {[%clk 0:00:10.8]} 64. Rf4 {[%clk 0:01:16.4]} 64... Rb3+ {[%clk
0:00:11.4]} 65. Rf3 {[%clk 0:01:16.4]} 65... Rb4 {[%clk 0:00:11.3]} 66. Rd3
{[%clk 0:01:15.8]} 66... Rc4 {[%clk 0:00:11.5]} 67. Rd7+ {[%clk 0:01:12.5]}
67... Kg8 {[%clk 0:00:11.7]} 68. Re7 {[%clk 0:01:11.4]} 68... Rb4 {[%clk
0:00:11.7]} 69. Kf3 {[%clk 0:01:11.2]} 69... Rc4 {[%clk 0:00:11.7]} 70. Re4
{[%clk 0:01:11]} 70... Rc5 {[%clk 0:00:12]} 71. Kf4 {[%clk 0:01:10.9]} 71... g5+
{[%clk 0:00:12.3]} 72. hxg5 {[%clk 0:01:08.4]} 72... Kg7 {[%clk 0:00:12.7]} 73.
Re7+ {[%clk 0:01:04.9]} 73... Kg6 {[%clk 0:00:12.4]} 74. Re6+ {[%clk 0:01:03]}
74... Kf7 {[%clk 0:00:12.6]} 75. Rf6+ {[%clk 0:01:01.9]} 75... Kg7 {[%clk
0:00:13.1]} 76. Rf5 {[%clk 0:01:01]} 76... Rc1 {[%clk 0:00:12.9]} 77. Ra5 {[%clk
0:00:58.7]} 77... Rf1+ {[%clk 0:00:12.8]} 78. Kg3 {[%clk 0:00:58.8]} 78... Rg1+
{[%clk 0:00:12.8]} 79. Kf3 {[%clk 0:00:59]} 79... Rf1+ {[%clk 0:00:12.8]} 80.
Kg2 {[%clk 0:00:59.1]} 80... Rb1 {[%clk 0:00:13]} 81. Kg3 {[%clk 0:00:58.6]}
81... Rg1+ {[%clk 0:00:13.1]} 82. Kf3 {[%clk 0:00:58.4]} 82... Rf1+ {[%clk
0:00:13.2]} 83. Kg2 {[%clk 0:00:57.9]} 83... Rb1 {[%clk 0:00:13.1]} 84. Ra6
{[%clk 0:00:57.6]} 84... Rb3 {[%clk 0:00:12.7]} 85. Re6 {[%clk 0:00:55.6]} 85...
Rc3 {[%clk 0:00:12.6]} 86. Kf2 {[%clk 0:00:55.2]} 86... Rb3 {[%clk 0:00:12.7]}
87. Re3 {[%clk 0:00:54.6]} 87... Rb1 {[%clk 0:00:12.4]} 88. Kg3 {[%clk
0:00:53.7]} 88... Kg6 {[%clk 0:00:12.5]} 89. Re5 {[%clk 0:00:52.6]} 89... Rg1+
{[%clk 0:00:12.3]} 90. Kf3 {[%clk 0:00:52.3]} 90... Rf1+ {[%clk 0:00:12.2]} 91.
Kg2 {[%clk 0:00:52.4]} 91... Rb1 {[%clk 0:00:12.3]} 92. Kg3 {[%clk 0:00:50.3]}
92... Rg1+ {[%clk 0:00:12.2]} 93. Kf3 {[%clk 0:00:49.8]} 93... Rf1+ {[%clk
0:00:12.1]} 94. Kg2 {[%clk 0:00:49.9]} 94... Rb1 {[%clk 0:00:11.9]} 95. Rd5
{[%clk 0:00:48.7]} 95... Rc1 {[%clk 0:00:11.9]} 96. Re5 {[%clk 0:00:48.2]} 96...
Rb1 {[%clk 0:00:12]} 1/2-1/2

[Event "*** Titled Tuesday Blitz"]
[Site "Chess.com"]
[Date "2021.03.09"]
[Round "7"]
[White "LEGENYA1998"]
[Black "MaxLeto"]
[Result "0-1"]
[WhiteElo "2251"]
[BlackElo "2386"]
[TimeControl "180+1"]
[EndTime "11:23:48 PST"]
[Termination "MaxLeto won on time"]

1. e4 {[%clk 0:02:59.8]} 1... c5 {[%clk 0:02:59.7]} 2. Nf3 {[%clk 0:02:51]} 2...
d6 {[%clk 0:02:59.7]} 3. Bb5+ {[%clk 0:02:48.1]} 3... Bd7 {[%clk 0:02:45.8]} 4.
Bxd7+ {[%clk 0:02:46.7]} 4... Qxd7 {[%clk 0:02:46.7]} 5. O-O {[%clk 0:02:46.4]}
5... Nc6 {[%clk 0:02:46.9]} 6. Re1 {[%clk 0:02:46]} 6... Nf6 {[%clk 0:02:47.4]}
7. c3 {[%clk 0:02:44.5]} 7... e6 {[%clk 0:02:48]} 8. d4 {[%clk 0:02:44.2]} 8...
cxd4 {[%clk 0:02:46.9]} 9. cxd4 {[%clk 0:02:44.5]} 9... d5 {[%clk 0:02:47.5]}
10. Nc3 {[%clk 0:02:41]} 10... dxe4 {[%clk 0:02:45.2]} 11. Nxe4 {[%clk
0:02:37.4]} 11... Nxe4 {[%clk 0:02:29.2]} 12. Rxe4 {[%clk 0:02:36.2]} 12... Be7
{[%clk 0:02:30]} 13. Bf4 {[%clk 0:02:19.2]} 13... O-O {[%clk 0:02:20]} 14. Ne5
{[%clk 0:02:18.9]} 14... Qd5 {[%clk 0:02:14]} 15. Nxc6 {[%clk 0:02:12.5]} 15...
Qxc6 {[%clk 0:01:38.4]} 16. Re1 {[%clk 0:02:09.1]} 16... Rfd8 {[%clk 0:01:35.4]}
17. Be3 {[%clk 0:01:53.1]} 17... Rd5 {[%clk 0:01:28.8]} 18. Qb3 {[%clk
0:01:50.8]} 18... Bf6 {[%clk 0:01:22.3]} 19. Rac1 {[%clk 0:01:49.7]} 19... Qd7
{[%clk 0:01:21.6]} 20. Red1 {[%clk 0:01:47.9]} 20... b6 {[%clk 0:00:57.1]} 21.
h3 {[%clk 0:01:47.2]} 21... Bxd4 {[%clk 0:00:34.6]} 22. Bxd4 {[%clk 0:01:43]}
22... Rxd4 {[%clk 0:00:35.5]} 23. Rxd4 {[%clk 0:01:42]} 23... Qxd4 {[%clk
0:00:36.4]} 24. Rc7 {[%clk 0:01:42.1]} 24... Qe5 {[%clk 0:00:27.1]} 25. Qc4
{[%clk 0:01:33.9]} 25... h6 {[%clk 0:00:21.8]} 26. Qc6 {[%clk 0:01:31.3]} 26...
Rd8 {[%clk 0:00:20.3]} 27. Rc8 {[%clk 0:01:28.9]} 27... Qe1+ {[%clk 0:00:16]}
28. Kh2 {[%clk 0:01:28.5]} 28... Rxc8 {[%clk 0:00:12.8]} 29. Qxc8+ {[%clk
0:01:27.1]} 29... Kh7 {[%clk 0:00:13.7]} 30. f3 {[%clk 0:01:14.5]} 30... Qe5+
{[%clk 0:00:12.8]} 31. Kh1 {[%clk 0:01:13.7]} 31... Qxb2 {[%clk 0:00:13.7]} 32.
Qd7 {[%clk 0:01:13.3]} 32... Qa1+ {[%clk 0:00:09.1]} 33. Kh2 {[%clk 0:01:12.8]}
33... Qe5+ {[%clk 0:00:09.4]} 34. Kh1 {[%clk 0:01:12.8]} 34... a5 {[%clk
0:00:05.9]} 35. Qxf7 {[%clk 0:01:10.2]} 35... Qa1+ {[%clk 0:00:06.4]} 36. Kh2
{[%clk 0:01:10.2]} 36... Qxa2 {[%clk 0:00:07.3]} 37. Qb7 {[%clk 0:01:05.6]}
37... Qd5 {[%clk 0:00:03.4]} 38. Qxb6 {[%clk 0:01:05.3]} 38... Kg6 {[%clk
0:00:02.7]} 39. Qb1+ {[%clk 0:01:03.7]} 39... Kf7 {[%clk 0:00:02.4]} 40. Qa1
{[%clk 0:01:02.1]} 40... Ke7 {[%clk 0:00:02]} 41. Qxg7+ {[%clk 0:01:01.6]} 41...
Kd6 {[%clk 0:00:02.6]} 42. Qf8+ {[%clk 0:01:01.9]} 42... Kc6 {[%clk 0:00:01.9]}
43. Qc8+ {[%clk 0:01:01.9]} 43... Kd6 {[%clk 0:00:01.9]} 44. Qb8+ {[%clk
0:01:01.1]} 44... Kc5 {[%clk 0:00:02.4]} 45. Qc7+ {[%clk 0:01:00.5]} 45... Kd4
{[%clk 0:00:02.1]} 46. Qf4+ {[%clk 0:00:59.3]} 46... Kc5 {[%clk 0:00:02]} 47.
Qxh6 {[%clk 0:00:57.2]} 47... Kc6 {[%clk 0:00:01.6]} 48. Qc1+ {[%clk 0:00:55.4]}
48... Kb6 {[%clk 0:00:01.5]} 49. Qb2+ {[%clk 0:00:53.8]} 49... Ka6 {[%clk
0:00:01.5]} 50. h4 {[%clk 0:00:52.1]} 50... a4 {[%clk 0:00:02]} 51. Qe2+ {[%clk
0:00:50.8]} 51... Ka5 {[%clk 0:00:02.1]} 52. Qe1+ {[%clk 0:00:50.1]} 52... Kb5
{[%clk 0:00:02.6]} 53. Qb1+ {[%clk 0:00:47.8]} 53... Ka5 {[%clk 0:00:02.8]} 54.
Qe1+ {[%clk 0:00:47.3]} 54... Kb5 {[%clk 0:00:03.1]} 55. Qc3 {[%clk 0:00:40.4]}
55... Qc5 {[%clk 0:00:02.8]} 56. Qb2+ {[%clk 0:00:38.8]} 56... Ka5 {[%clk
0:00:03.3]} 57. Qd2+ {[%clk 0:00:34.6]} 57... Qb4 {[%clk 0:00:03.9]} 58. Qg5+
{[%clk 0:00:33.5]} 58... Ka6 {[%clk 0:00:04.4]} 59. Qe5 {[%clk 0:00:22.5]} 59...
Qxh4+ {[%clk 0:00:03.1]} 60. Kg1 {[%clk 0:00:22.3]} 60... Qb4 {[%clk 0:00:02.8]}
61. Kh2 {[%clk 0:00:14.1]} 61... Qb3 {[%clk 0:00:02.3]} 62. Qd6+ {[%clk
0:00:13.8]} 62... Kb5 {[%clk 0:00:02.4]} 63. Qd7+ {[%clk 0:00:13.1]} 63... Kc5
{[%clk 0:00:02.7]} 64. Qc7+ {[%clk 0:00:12.2]} 64... Kd4 {[%clk 0:00:03.3]} 65.
Qf4+ {[%clk 0:00:11.2]} 65... Kc3 {[%clk 0:00:03.6]} 66. Qe3+ {[%clk 0:00:11.2]}
66... Kb2 {[%clk 0:00:04]} 67. Qd2+ {[%clk 0:00:11.4]} 67... Kb1 {[%clk
0:00:04.1]} 68. Qe1+ {[%clk 0:00:11.1]} 68... Ka2 {[%clk 0:00:04.6]} 69. Qd2+
{[%clk 0:00:10.9]} 69... Ka3 {[%clk 0:00:05.2]} 70. Qd6+ {[%clk 0:00:10.4]}
70... Ka2 {[%clk 0:00:05.6]} 71. Qd2+ {[%clk 0:00:09.8]} 71... Kb1 {[%clk
0:00:06.3]} 72. Qe1+ {[%clk 0:00:09.4]} 72... Kc2 {[%clk 0:00:06.6]} 73. Qe2+
{[%clk 0:00:08.4]} 73... Kc3 {[%clk 0:00:07.5]} 74. Qe3+ {[%clk 0:00:08]} 74...
Kb4 {[%clk 0:00:07.8]} 75. Qd4+ {[%clk 0:00:07.9]} 75... Kb5 {[%clk 0:00:08.2]}
76. Qe5+ {[%clk 0:00:07.2]} 76... Qd5 {[%clk 0:00:08.9]} 77. Qb2+ {[%clk
0:00:07.3]} 77... Ka5 {[%clk 0:00:09]} 78. Qc3+ {[%clk 0:00:07]} 78... Kb5
{[%clk 0:00:09.4]} 79. Qb2+ {[%clk 0:00:06.8]} 79... Ka6 {[%clk 0:00:09.8]} 80.
Qc2 {[%clk 0:00:03.3]} 80... Qb3 {[%clk 0:00:08.6]} 81. Qc6+ {[%clk 0:00:03.2]}
81... Ka5 {[%clk 0:00:08.7]} 82. Qc5+ {[%clk 0:00:03.5]} 82... Ka6 {[%clk
0:00:09.2]} 83. Qc6+ {[%clk 0:00:03.9]} 83... Ka7 {[%clk 0:00:09.7]} 84. Qc7+
{[%clk 0:00:04]} 84... Ka8 {[%clk 0:00:10.1]} 85. Qc8+ {[%clk 0:00:03.8]} 85...
Qb8+ {[%clk 0:00:10.5]} 0-1